Workbook

Sheet Find c
B1: The Integral Mean Value Theorem
B3: This graphing utility lets you investigate
B4: the Mean Value Theorem for Integrals:
B5: There is a number c between x = a and x = b
D6: where
B8: f (c ) =
A11: Enter the function in terms of x: f(x) = | F11: x^4-5*x^3+3*x+50
A13: Now enter the interval for x:
C14: xMin = | D14: -4
C15: xMax = | D15: 4
M18: The graph of the function y = | P18: =F11 -> x^4-5*x^3+3*x+50
A20: Click each item below for suggestions and investigations | L20: The area under the curve is | P20: =Sheet2!C3 -> 1619.205
B21: Item 1
B22: Item 2 | L22: First, slide the green line until the area of the rectangle under it
B23: Item 3 | M23: is roughly equal to the area under the curve
O25: 389 | P25: =Fmin+O25*(Fmax-Fmin)/1000 -> 235.9440525
A27: To access/download all the DIGMath Apps for Calculus | N27: The height of the line is y = | Q27: =P25 -> 235.9440525
A28: Click this link: | C28: DIGMath for Calculus
N29: The area of the rectangle is | Q29: =P25*(b-a) -> 1885.666753
A30: Created by: Sheldon P. Gordon
A31: Farmingdale State College | L31: Next, slide the red dot along the curve until you find a point x = c
A32: Development of this module was supported by the | M32: where the Mean Value Theorem for Integrals holds.
A33: NSF's Division of Undergraduate Education
A34: under grants DUE-0310123 and DUE-0442160. | P34: 277
N36: The value of x here is x = | Q36: =a+(b-a)*P34/1000 -> -1.786213786

Sheet Sheet2
A1: x | B1: f(x) | C1: trap | E1: move line | F1: xl= | G1: =a -> -4 | H1: =F15 -> 235.9440525 | I1: "=yl
F2: xr= | G2: =b -> 3.992007992 | H2: =H1 -> 235.9440525 | I2: "=yR | L2: sorted values by y
A3: ='Find c'!D14 -> -4.00 | B3: =x^4-5*x^3+3*x+50 -> 614.0000 | C3: =(B3+2*SUM(B4:B1003)+B1004)*G11 -> 1619.2055 | L3: -1.83 | M3: 3.490033159 | N3: Note: Copy special - only values, then Data-Sort-by Column N
A4: =A3+Sheet2!G$11 -> -3.99 | B4: 610.0699 | E4: secant line | F4: xL = | G4: =A3 -> -4.00 | H4: =B3 -> 614 | L4: -1.82 | M4: 3.490198757
A5: =A4+Sheet2!G$11 -> -3.98 | B5: 606.1597 | F5: xR = | G5: =A1003 -> 3.99 | H5: =B1003 -> -2.149554364 | L5: -1.83 | M5: 3.491784945
A6: =A5+Sheet2!G$11 -> -3.98 | B6: 602.2692 | E6: slope = | F6: =(H5-H4)/(G5-G4) -> -77.09571299 | L6: -1.81 | M6: 3.492259414
A7: =A6+Sheet2!G$11 -> -3.97 | B7: 598.3985 | L7: -1.84 | M7: 3.495476535
A8: =A7+Sheet2!G$11 -> -3.96 | B8: 594.5475 | L8: -1.80 | M8: 3.496192903
A9: =A8+Sheet2!G$11 -> -3.95 | B9: 590.7160 | L9: -1.85 | M9: 3.50113045
A10: =A9+Sheet2!G$11 -> -3.94 | B10: 586.9042 | L10: -1.79 | M10: 3.501977098
A11: =A10+Sheet2!G$11 -> -3.94 | B11: 583.1117 | F11: delta x = | G11: =('Find c'!D15-'Find c'!D14)/1001 -> 0.007992007992 | L11: -1.86 | M11: 3.508769307
A12: =A11+Sheet2!G$11 -> -3.93 | B12: 579.3388 | L12: -1.79 | M12: 3.509589968
A13: =A12+Sheet2!G$11 -> -3.92 | B13: 575.5851 | E13: Fmin = | F13: =MIN(B3:B1003) -> -4.7495 | G13: =LOOKUP(F13,M3:M1003,L3:L1003) ->  | H13: =x | L13: -1.87 | M13: 3.518415822
A14: =A13+Sheet2!G$11 -> -3.91 | B14: 571.8508 | E14: Fmax = | F14: =MAX(B3:B1003) -> 614 | G14: =LOOKUP(F14,M3:M1003,L3:L1003) -> 3.992007992 | H14: =x | L14: -1.78 | M14: 3.519009581
A15: =A14+Sheet2!G$11 -> -3.90 | B15: 568.1357 | E15: F value = | F15: ='Find c'!Q27 -> 235.9440525 | L15: -1.87 | M15: 3.530092807
A16: =A15+Sheet2!G$11 -> -3.90 | B16: 564.4397 | E16: x Mid = | F16: =(a+b)/2 -> -0.003996003996 | L16: -1.77 | M16: 3.530214102
A17: =A16+Sheet2!G$11 -> -3.89 | B17: 560.7629 | L17: -1.76 | M17: 3.543181795
A18: =A17+Sheet2!G$11 -> -3.88 | B18: 557.1050 | L18: -1.88 | M18: 3.543823176
A19: =A18+Sheet2!G$11 -> -3.87 | B19: 553.4662 | L19: -1.75 | M19: 3.557891021
A20: =A19+Sheet2!G$11 -> -3.86 | B20: 549.8463 | L20: -1.89 | M20: 3.559629935
A21: =A20+Sheet2!G$11 -> -3.86 | B21: 546.2452 | L21: -1.75 | M21: 3.574320241
A22: =A21+Sheet2!G$11 -> -3.85 | B22: 542.6629 | L22: -1.90 | M22: 3.577536194
A23: =A22+Sheet2!G$11 -> -3.84 | B23: 539.0993 | L23: -1.74 | M23: 3.59244801
A24: =A23+Sheet2!G$11 -> -3.83 | B24: 535.5544 | L24: -1.91 | M24: 3.597565157
A25: =A24+Sheet2!G$11 -> -3.82 | B25: 532.0281 | E25: left line | F25: =a -> -4 | G25: =0 -> 0 | L25: -1.73 | M25: 3.612252986
A26: =A25+Sheet2!G$11 -> -3.82 | B26: 528.5203 | F26: =a -> -4 | G26: =Fmax -> 614 | L26: -1.91 | M26: 3.619740127
A27: =A26+Sheet2!G$11 -> -3.81 | B27: 525.0310 | L27: -1.72 | M27: 3.633713919
A28: =A27+Sheet2!G$11 -> -3.80 | B28: 521.5601 | E28: right line | F28: =b -> 3.992007992 | G28: 0 | L28: -1.92 | M28: 3.644084505
A29: =A28+Sheet2!G$11 -> -3.79 | B29: 518.1076 | F29: =b -> 3.992007992 | G29: =Fmax -> 614 | L29: -1.71 | M29: 3.656809663
A30: =A29+Sheet2!G$11 -> -3.78 | B30: 514.6734 | L30: -1.93 | M30: 3.670621789
A31: =A30+Sheet2!G$11 -> -3.78 | B31: 511.2573 | L31: -1.71 | M31: 3.681519165
A32: =A31+Sheet2!G$11 -> -3.77 | B32: 507.8595 | E32: top line | F32: =a -> -4 | G32: =Fmax -> 614 | L32: -1.94 | M32: 3.699375577
A33: =A32+Sheet2!G$11 -> -3.76 | B33: 504.4797 | F33: =b -> 3.992007992 | G33: =Fmax -> 614 | L33: -1.70 | M33: 3.707821472
A34: =A33+Sheet2!G$11 -> -3.75 | B34: 501.1180 | L34: -1.95 | M34: 3.730369563
A35: =A34+Sheet2!G$11 -> -3.74 | B35: 497.7743 | E35: Moving dot | F35: ='Find c'!Q36 -> -1.786213786 | G35: =LOOKUP(F35,A3:A1004,B3:B1004) -> 83.85977373 | L35: -1.69 | M35: 3.73569573
A36: =A35+Sheet2!G$11 -> -3.74 | B36: 494.4485 | L36: -1.95 | M36: 3.76362754
A37: =A36+Sheet2!G$11 -> -3.73 | B37: 491.1405 | L37: -1.68 | M37: 3.765121181
A38: =A37+Sheet2!G$11 -> -3.72 | B38: 487.8504 | L38: -1.67 | M38: 3.796077165
A39: =A38+Sheet2!G$11 -> -3.71 | B39: 484.5780 | L39: -1.96 | M39: 3.799173398
A40: =A39+Sheet2!G$11 -> -3.70 | B40: 481.3232 | L40: -1.67 | M40: 3.828543122
A41: =A40+Sheet2!G$11 -> -3.70 | B41: 478.0861 | L41: -1.97 | M41: 3.837031125
A42: =A41+Sheet2!G$11 -> -3.69 | B42: 474.8666 | L42: -1.66 | M42: 3.862498587
A43: =A42+Sheet2!G$11 -> -3.68 | B43: 471.6645 | L43: -1.98 | M43: 3.877224808
A44: =A43+Sheet2!G$11 -> -3.67 | B44: 468.4798 | L44: -1.65 | M44: 3.897923195
A45: =A44+Sheet2!G$11 -> -3.66 | B45: 465.3126 | L45: -1.99 | M45: 3.919778631
A46: =A45+Sheet2!G$11 -> -3.66 | B46: 462.1626 | L46: -1.64 | M46: 3.934796679
A47: =A46+Sheet2!G$11 -> -3.65 | B47: 459.0299 | L47: -1.99 | M47: 3.964716877
A48: =A47+Sheet2!G$11 -> -3.64 | B48: 455.9144 | L48: -1.63 | M48: 3.973098868
A49: =A48+Sheet2!G$11 -> -3.63 | B49: 452.8160 | L49: -2.00 | M49: 4.012063924
A50: =A49+Sheet2!G$11 -> -3.62 | B50: 449.7347 | L50: -1.63 | M50: 4.01280969
A51: =A50+Sheet2!G$11 -> -3.62 | B51: 446.6705 | L51: -1.62 | M51: 4.053909172
A52: =A51+Sheet2!G$11 -> -3.61 | B52: 443.6231 | L52: -2.01 | M52: 4.061844252
A53: =A52+Sheet2!G$11 -> -3.60 | B53: 440.5927 | L53: -1.61 | M53: 4.096377437
A54: =A53+Sheet2!G$11 -> -3.59 | B54: 437.5791 | L54: -2.02 | M54: 4.114082435
A55: =A54+Sheet2!G$11 -> -3.58 | B55: 434.5822 | L55: -1.60 | M55: 4.140194708
A56: =A55+Sheet2!G$11 -> -3.58 | B56: 431.6021 | L56: -2.03 | M56: 4.168803148
A57: =A56+Sheet2!G$11 -> -3.57 | B57: 428.6387 | L57: -1.59 | M57: 4.185341303
A58: =A57+Sheet2!G$11 -> -3.56 | B58: 425.6918 | L58: -2.03 | M58: 4.226031163
A59: =A58+Sheet2!G$11 -> -3.55 | B59: 422.7615 | L59: -1.59 | M59: 4.231797641
A60: =A59+Sheet2!G$11 -> -3.54 | B60: 419.8477 | L60: -1.58 | M60: 4.279544237
A61: =A60+Sheet2!G$11 -> -3.54 | B61: 416.9502 | L61: -2.04 | M61: 4.285791349
A62: =A61+Sheet2!G$11 -> -3.53 | B62: 414.0692 | L62: -1.57 | M62: 4.328561705
A63: =A62+Sheet2!G$11 -> -3.52 | B63: 411.2044 | L63: -2.05 | M63: 4.348108673
A64: =A63+Sheet2!G$11 -> -3.51 | B64: 408.3559 | L64: -1.56 | M64: 4.378830756
A65: =A64+Sheet2!G$11 -> -3.50 | B65: 405.5236 | L65: -2.06 | M65: 4.413008201
A66: =A65+Sheet2!G$11 -> -3.50 | B66: 402.7074 | L66: -1.55 | M66: 4.430332199
A67: =A66+Sheet2!G$11 -> -3.49 | B67: =x^4-5*x^3+3*x+50 -> 399.9073 | L67: -2.07 | M67: 4.480515096
A68: =A67+Sheet2!G$11 -> -3.48 | B68: 397.1232 | L68: -1.55 | M68: 4.483046942
A69: =A68+Sheet2!G$11 -> -3.47 | B69: 394.3550 | L69: -1.54 | M69: 4.536955989
A70: =A69+Sheet2!G$11 -> -3.46 | B70: 391.6027 | L70: -2.07 | M70: 4.55065462
A71: =A70+Sheet2!G$11 -> -3.46 | B71: 388.8663 | L71: -1.53 | M71: 4.592040444
A72: =A71+Sheet2!G$11 -> -3.45 | B72: 386.1457 | L72: -2.08 | M72: 4.623452132
A73: =A72+Sheet2!G$11 -> -3.44 | B73: 383.4408 | L73: -1.52 | M73: 4.648281507
A74: =A73+Sheet2!G$11 -> -3.43 | B74: 380.7515 | L74: -2.09 | M74: 4.698933088
A75: =A74+Sheet2!G$11 -> -3.42 | B75: 378.0779 | L75: -1.51 | M75: 4.705660478
A76: =A75+Sheet2!G$11 -> -3.42 | B76: 375.4198 | L76: -1.51 | M76: 4.764158754
A77: =A76+Sheet2!G$11 -> -3.41 | B77: 372.7772 | L77: -2.10 | M77: 4.777123043
A78: =A77+Sheet2!G$11 -> -3.40 | B78: 370.1500 | L78: -1.50 | M78: 4.823757828
A79: =A78+Sheet2!G$11 -> -3.39 | B79: 367.5382 | L79: -2.11 | M79: 4.858047652
A80: =A79+Sheet2!G$11 -> -3.38 | B80: 364.9418 | L80: -1.49 | M80: 4.884439293
A81: =A80+Sheet2!G$11 -> -3.38 | B81: 362.3606 | L81: -2.11 | M81: 4.941732663
A82: =A81+Sheet2!G$11 -> -3.37 | B82: 359.7946 | L82: -1.48 | M82: 4.946184841
A83: =A82+Sheet2!G$11 -> -3.36 | B83: 357.2438 | L83: -1.47 | M83: 5.008976259
A84: =A83+Sheet2!G$11 -> -3.35 | B84: 354.7080 | L84: -2.12 | M84: 5.028203927
A85: =A84+Sheet2!G$11 -> -3.34 | B85: 352.1873 | L85: -1.47 | M85: 5.072795434
A86: =A85+Sheet2!G$11 -> -3.34 | B86: 349.6816 | L86: -2.13 | M86: 5.117487389
A87: =A86+Sheet2!G$11 -> -3.33 | B87: 347.1908 | L87: -1.46 | M87: 5.13762435
A88: =A87+Sheet2!G$11 -> -3.32 | B88: 344.7149 | L88: -1.45 | M88: 5.203445088
A89: =A88+Sheet2!G$11 -> -3.31 | B89: 342.2538 | L89: -2.14 | M89: 5.209609094
A90: =A89+Sheet2!G$11 -> -3.30 | B90: 339.8075 | L90: -1.44 | M90: 5.27023983
A91: =A90+Sheet2!G$11 -> -3.30 | B91: 337.3758 | L91: -2.15 | M91: 5.304595185
A92: =A91+Sheet2!G$11 -> -3.29 | B92: 334.9588 | L92: -1.43 | M92: 5.337990853
A93: =A92+Sheet2!G$11 -> -3.28 | B93: 332.5564 | L93: -2.15 | M93: 5.402471902
A94: =A93+Sheet2!G$11 -> -3.27 | B94: 330.1686 | L94: -1.43 | M94: 5.406680534
A95: =A94+Sheet2!G$11 -> -3.26 | B95: 327.7952 | L95: -1.42 | M95: 5.476291344
A96: =A95+Sheet2!G$11 -> -3.26 | B96: 325.4362 | L96: -2.16 | M96: 5.503265583
A97: =A96+Sheet2!G$11 -> -3.25 | B97: 323.0916 | L97: -1.41 | M97: 5.546805858
A98: =A97+Sheet2!G$11 -> -3.24 | B98: 320.7614 | L98: -2.17 | M98: 5.607002665
A99: =A98+Sheet2!G$11 -> -3.23 | B99: 318.4453 | L99: -1.40 | M99: 5.618206743
A100: =A99+Sheet2!G$11 -> -3.22 | B100: 316.1435 | L100: -1.39 | M100: 5.690476769
A101: =A100+Sheet2!G$11 -> -3.22 | B101: 313.8559 | L101: -2.18 | M101: 5.713709681
A102: =A101+Sheet2!G$11 -> -3.21 | B102: 311.5823 | L102: -1.39 | M102: 5.763598799
A103: =A102+Sheet2!G$11 -> -3.20 | B103: 309.3228 | L103: -2.19 | M103: 5.823413264
A104: =A103+Sheet2!G$11 -> -3.19 | B104: 307.0772 | L104: -1.38 | M104: 5.837555798
A105: =A104+Sheet2!G$11 -> -3.18 | B105: 304.8456 | L105: -1.37 | M105: 5.912330826
A106: =A105+Sheet2!G$11 -> -3.18 | B106: 302.6279 | L106: -2.19 | M106: 5.936140143
A107: =A106+Sheet2!G$11 -> -3.17 | B107: 300.4240 | L107: -1.36 | M107: 5.987907044
A108: =A107+Sheet2!G$11 -> -3.16 | B108: 298.2339 | L108: -2.20 | M108: 6.051917146
A109: =A108+Sheet2!G$11 -> -3.15 | B109: 296.0574 | L109: -1.35 | M109: 6.064267707
A110: =A109+Sheet2!G$11 -> -3.14 | B110: 293.8947 | L110: -1.35 | M110: 6.141396172
A111: =A110+Sheet2!G$11 -> -3.14 | B111: 291.7455 | L111: -2.21 | M111: 6.170771199
A112: =A111+Sheet2!G$11 -> -3.13 | B112: 289.6099 | L112: -1.34 | M112: 6.21927589
A113: =A112+Sheet2!G$11 -> -3.12 | B113: 287.4878 | L113: -2.22 | M113: 6.292729326
A114: =A113+Sheet2!G$11 -> -3.11 | B114: 285.3791 | L114: -1.33 | M114: 6.297890413
A115: =A114+Sheet2!G$11 -> -3.10 | B115: 283.2839 | L115: -1.32 | M115: 6.377223389
A116: =A115+Sheet2!G$11 -> -3.10 | B116: 281.2019 | L116: -2.23 | M116: 6.417818648
A117: =A116+Sheet2!G$11 -> -3.09 | B117: 279.1333 | L117: -1.31 | M117: 6.457258566
A118: =A117+Sheet2!G$11 -> -3.08 | B118: 277.0779 | L118: -1.31 | M118: 6.537979787
A119: =A118+Sheet2!G$11 -> -3.07 | B119: 275.0356 | L119: -2.23 | M119: 6.546066384
A120: =A119+Sheet2!G$11 -> -3.06 | B120: 273.0065 | L120: -1.30 | M120: 6.619370996
A121: =A120+Sheet2!G$11 -> -3.06 | B121: 270.9905 | L121: -2.24 | M121: 6.677499853
A122: =A121+Sheet2!G$11 -> -3.05 | B122: 268.9875 | L122: -1.29 | M122: 6.701416231
A123: =A122+Sheet2!G$11 -> -3.04 | B123: 266.9974 | L123: -1.28 | M123: 6.784099633
A124: =A123+Sheet2!G$11 -> -3.03 | B124: 265.0203 | L124: -2.25 | M124: 6.812146469
A125: =A124+Sheet2!G$11 -> -3.02 | B125: 263.0560 | L125: -1.27 | M125: 6.867405437
A126: =A125+Sheet2!G$11 -> -3.02 | B126: 261.1046 | L126: -2.26 | M126: 6.950033745
A127: =A126+Sheet2!G$11 -> -3.01 | B127: 259.1659 | L127: -1.27 | M127: 6.951317977
A128: =A127+Sheet2!G$11 -> -3.00 | B128: 257.2399 | L128: -1.26 | M128: 7.035821685
A129: =A128+Sheet2!G$11 -> -2.99 | B129: 255.3265 | L129: -2.27 | M129: 7.091189294
A130: =A129+Sheet2!G$11 -> -2.99 | B130: 253.4258 | L130: -1.25 | M130: 7.120901091
A131: =A130+Sheet2!G$11 -> -2.98 | B131: =x^4-5*x^3+3*x+50 -> 251.5376 | L131: -1.24 | M131: 7.206540823
A132: =A131+Sheet2!G$11 -> -2.97 | B132: 249.6619 | L132: -2.27 | M132: 7.235640822
A133: =A132+Sheet2!G$11 -> -2.96 | B133: 247.7986 | L133: -1.23 | M133: 7.292725607
A134: =A133+Sheet2!G$11 -> -2.95 | B134: 245.9478 | L134: -1.23 | M134: 7.379440266
A135: =A134+Sheet2!G$11 -> -2.95 | B135: 244.1093 | L135: -2.28 | M135: 7.383416139
A136: =A135+Sheet2!G$11 -> -2.94 | B136: 242.2830 | L136: -1.22 | M136: 7.466669722
A137: =A136+Sheet2!G$11 -> -2.93 | B137: 240.4690 | L137: -2.29 | M137: 7.534543148
A138: =A137+Sheet2!G$11 -> -2.92 | B138: 238.6672 | L138: -1.21 | M138: 7.554398995
A139: =A138+Sheet2!G$11 -> -2.91 | B139: 236.8776 | L139: -1.20 | M139: 7.642613201
A140: =A139+Sheet2!G$11 -> -2.91 | B140: 235.1000 | L140: -2.30 | M140: 7.689049852
A141: =A140+Sheet2!G$11 -> -2.90 | B141: 233.3345 | L141: -1.19 | M141: 7.731297557
A142: =A141+Sheet2!G$11 -> -2.89 | B142: 231.5809 | L142: -1.19 | M142: 7.820437375
A143: =A142+Sheet2!G$11 -> -2.88 | B143: 229.8393 | L143: -2.31 | M143: 7.846964352
A144: =A143+Sheet2!G$11 -> -2.87 | B144: 228.1096 | L144: -1.18 | M144: 7.910018067
A145: =A144+Sheet2!G$11 -> -2.87 | B145: 226.3917 | L145: -1.17 | M145: 8.000025141
A146: =A145+Sheet2!G$11 -> -2.86 | B146: 224.6855 | L146: -2.31 | M146: 8.008314846
A147: =A146+Sheet2!G$11 -> -2.85 | B147: 222.9912 | L147: -1.16 | M147: 8.090444206
A148: =A147+Sheet2!G$11 -> -2.84 | B148: 221.3084 | L148: -2.32 | M148: 8.173129632
A149: =A148+Sheet2!G$11 -> -2.83 | B149: 219.6374 | L149: -1.15 | M149: 8.181260964
A150: =A149+Sheet2!G$11 -> -2.83 | B150: 217.9779 | L150: -1.15 | M150: 8.27246122
A151: =A150+Sheet2!G$11 -> -2.82 | B151: 216.3299 | L151: -2.33 | M151: 8.341437103
A152: =A151+Sheet2!G$11 -> -2.81 | B152: 214.6934 | L152: -1.14 | M152: 8.364030874
A153: =A152+Sheet2!G$11 -> -2.80 | B153: 213.0684 | L153: -1.13 | M153: 8.455955925
A154: =A153+Sheet2!G$11 -> -2.79 | B154: 211.4547 | L154: -2.34 | M154: 8.513265751
A155: =A154+Sheet2!G$11 -> -2.79 | B155: 209.8524 | L155: -1.12 | M155: 8.548222468
A156: =A155+Sheet2!G$11 -> -2.78 | B156: 208.2613 | L156: -1.11 | M156: 8.6408167
A157: =A156+Sheet2!G$11 -> -2.77 | B157: 206.6815 | L157: -2.35 | M157: 8.688644168
A158: =A157+Sheet2!G$11 -> -2.76 | B158: 205.1129 | L158: -1.11 | M158: 8.733724911
A159: =A158+Sheet2!G$11 -> -2.75 | B159: 203.5553 | L159: -1.10 | M159: 8.826933493
A160: =A159+Sheet2!G$11 -> -2.75 | B160: 202.0089 | L160: -2.35 | M160: 8.867601041
A161: =A160+Sheet2!G$11 -> -2.74 | B161: 200.4735 | L161: -1.09 | M161: 8.920428932
A162: =A161+Sheet2!G$11 -> -2.73 | B162: 198.9492 | L162: -1.08 | M162: 9.014197817
A163: =A162+Sheet2!G$11 -> -2.72 | B163: 197.4357 | L163: -2.36 | M163: 9.050165156
A164: =A163+Sheet2!G$11 -> -2.71 | B164: 195.9331 | L164: -1.07 | M164: 9.10822683
A165: =A164+Sheet2!G$11 -> -2.71 | B165: 194.4414 | L165: -1.07 | M165: 9.202502753
A166: =A165+Sheet2!G$11 -> -2.70 | B166: 192.9605 | L166: -2.37 | M166: 9.236365397
A167: =A166+Sheet2!G$11 -> -2.69 | B167: 191.4903 | L167: -1.06 | M167: 9.297012467
A168: =A167+Sheet2!G$11 -> -2.68 | B168: 190.0308 | L168: -1.05 | M168: 9.391742948
A169: =A168+Sheet2!G$11 -> -2.67 | B169: 188.5820 | L169: -2.38 | M169: 9.426230746
A170: =A169+Sheet2!G$11 -> -2.67 | B170: 187.1437 | L170: -1.04 | M170: 9.486681273
A171: =A170+Sheet2!G$11 -> -2.66 | B171: 185.7161 | L171: -1.03 | M171: 9.581814615
A172: =A171+Sheet2!G$11 -> -2.65 | B172: 184.2989 | L172: -2.39 | M172: 9.619790283
A173: =A172+Sheet2!G$11 -> -2.64 | B173: 182.8922 | L173: -1.03 | M173: 9.677130246
A174: =A173+Sheet2!G$11 -> -2.63 | B174: 181.4958 | L174: -1.02 | M174: 9.772615535
A175: =A174+Sheet2!G$11 -> -2.63 | B175: 180.1099 | L175: -2.39 | M175: 9.817073185
A176: =A175+Sheet2!G$11 -> -2.62 | B176: 178.7342 | L176: -1.01 | M176: 9.868257949
A177: =A176+Sheet2!G$11 -> -2.61 | B177: 177.3689 | L177: -1.00 | M177: 9.964045054
A178: =A177+Sheet2!G$11 -> -2.60 | B178: 176.0137 | L178: -2.40 | M178: 10.01810873
A179: =A178+Sheet2!G$11 -> -2.59 | B179: 174.6687 | L179: -1.00 | M179: 10.05996451
A180: =A179+Sheet2!G$11 -> -2.59 | B180: 173.3339 | L180: -0.99 | M180: 10.15600409
A181: =A180+Sheet2!G$11 -> -2.58 | B181: 172.0091 | L181: -2.41 | M181: 10.22292629
A182: =A181+Sheet2!G$11 -> -2.57 | B182: 170.6943 | L182: -0.98 | M182: 10.25215163
A183: =A182+Sheet2!G$11 -> -2.56 | B183: 169.3896 | L183: -0.97 | M183: 10.34839511
A184: =A183+Sheet2!G$11 -> -2.55 | B184: 168.0947 | L184: -2.42 | M184: 10.43155533
A185: =A184+Sheet2!G$11 -> -2.55 | B185: 166.8098 | L185: -0.96 | M185: 10.44472257
A186: =A185+Sheet2!G$11 -> -2.54 | B186: 165.5347 | L186: -0.96 | M186: 10.54112217
A187: =A186+Sheet2!G$11 -> -2.53 | B187: 164.2694 | L187: -0.95 | M187: 10.63758216
A188: =A187+Sheet2!G$11 -> -2.52 | B188: 163.0138 | L188: -2.43 | M188: 10.64402543
A189: =A188+Sheet2!G$11 -> -2.51 | B189: 161.7680 | L189: -0.94 | M189: 10.73409089
A190: =A189+Sheet2!G$11 -> -2.51 | B190: 160.5318 | L190: -0.93 | M190: 10.83063679
A191: =A190+Sheet2!G$11 -> -2.50 | B191: 159.3052 | L191: -2.43 | M191: 10.86036625
A192: =A191+Sheet2!G$11 -> -2.49 | B192: 158.0882 | L192: -0.92 | M192: 10.92720843
A193: =A192+Sheet2!G$11 -> -2.48 | B193: 156.8807 | L193: -0.92 | M193: 11.02379444
A194: =A193+Sheet2!G$11 -> -2.47 | B194: 155.6827 | L194: -2.44 | M194: 11.08060756
A195: =A194+Sheet2!G$11 -> -2.47 | B195: =x^4-5*x^3+3*x+50 -> 154.4941 | L195: -0.91 | M195: 11.12038355
A196: =A195+Sheet2!G$11 -> -2.46 | B196: 153.3149 | L196: -0.90 | M196: 11.21696462
A197: =A196+Sheet2!G$11 -> -2.45 | B197: 152.1451 | L197: -2.45 | M197: 11.30477923
A198: =A197+Sheet2!G$11 -> -2.44 | B198: 150.9845 | L198: -0.89 | M198: 11.31352657
A199: =A198+Sheet2!G$11 -> -2.43 | B199: 149.8332 | L199: -0.88 | M199: 11.41005844
A200: =A199+Sheet2!G$11 -> -2.43 | B200: 148.6911 | L200: -0.88 | M200: 11.50654935
... 804 more rows

Sheet Defining Function
A1: Defining a Function in Excel
A3: Computers have very specific rules you must follow when defining a function. If you don't, the program will either not work at all or will work incorrectly.
A5: 1. The Variable used should be the one named in the instruction, usually x, though sometimes y, t, Q (for an angle theta),
A6: or even x and y (for a function of two variables).
A8: 2. Order of Operations: There five arithmetic operations, addition (+), subtraction (-), multiplication (*), division (/), and exponentiation or power (^). When computers see any of these operation symbols, they perform the indicated steps in a very particular order. First, the power is done. Second, products and quotients of adjacent terms is done. Third, and last, sums and differences of adjacent terms are done. So, in 10*x^3 + 5*x – 7, say with x = 2, the first pass only calculates 2^3 and ignores the multiplications and the sums and differences to calculate 2^3 = 8. The second pass looks at 10*8 + 5*2 – 7 and only does the multiplications, so it produces 80 + 10 - 7. The third pass looks at the +’s and –‘s to produce 80 + 10 – 7 = 83.
A10: 3. Parentheses If you need an operation involving more than two adjacent terms, as in Ö4^3 + 6^2, the computer would take the square root of 4 to produce 2^3 + 6^2; it would then cube the 2 and square the 6 to produce 8 + 36; and finally it would add the 8 and the 36 to get 44. If you actually wanted the square root of the entire expression, you would need to use parentheses, as in Ö(4^3 + 6^2) to tell the computer to do all the operations inside the parentheses before taking the square root. Therefore, it would calculate (4^3 + 6^2) = 64 + 36 = 100 and then take the square root of Ö100 = 10.
A12: 4. Built-In Functions Computer programs have built-in functions for most common algebraic functions. In Excel, the square root function is denoted by SQRT(…), so SQRT(100) = 10. Alternatively, you could enter it as 100^.5 or 100^(1/2); notice that parentheses are needed to have the ½ done first. The common trig functions are SIN (…), COS (…), and TAN (…), where the arguments are automatically interpreted as being in radians, not degrees. The logarithm to the base 10 is represented by LOG (…) and the logarithm with the base e, known as the natural logarithm, is LN (…). The corresponding exponential function with base e is EXP (x). If x is the variable, then each of these would be SQRT (x), SIN (x), COS (x), TAN (x), LOG (x) (for log with base 10 ), LN (x) (for log with base e ), and EXP (x).

Sheet Sheet3
